bitfinex/quotes_ETHUSD_20250220
["timestamp","ask_amount","ask_price","bid_price","bid_amount"]
[1740040615010,4.909977,2734.4,2734.3,3.65724]
[1740040615213,4.909977,2734.4,2734.2,3.91835]
[1740040615392,4.909977,2734.4,2734.2,7.57565]
[1740040615600,4.909977,2734.4,2734.2,3.9183]
[1740040617000,4.909977,2734.4,2734.3,3.65724]
[1740040619316,4.909977,2734.4,2734.2,3.91828]
[1740040619524,4.909977,2734.4,2734.2,0.261]
[1740040621005,3.65749,2734.2,2733.6,3.65811]
[1740040621312,0.7674,2734.0,2733.7,0.261]
[1740040621518,4.42511,2734.0,2733.7,0.261]
[1740040621679,4.42511,2734.0,2733.6,0.261]
[1740040621680,0.55,2733.9,2733.6,0.261]
[1740040622004,4.41988,2733.8,2733.6,0.261]
[1740040622167,4.909977,2733.7,2733.6,0.261]
[1740040622369,4.909977,2733.7,2733.5,8.219]
[1740040622678,9.880047,2733.6,2733.5,0.261]
[1740040622894,6.221877,2733.6,2733.5,0.261]
[1740040623580,4.909977,2733.6,2733.5,3.91931]
[1740040623795,4.909977,2733.6,2733.5,0.261]
[1740040625309,5.4800947,2733.6,2733.5,0.261]
[1740040625605,4.909977,2733.6,2733.5,0.261]
[1740040627807,4.909977,2733.6,2733.5,3.91931]
[1740040628306,4.909977,2733.6,2733.5,0.261]
[1740040629812,4.909977,2733.6,2733.5,3.91931]
[1740040630181,4.909977,2733.6,2733.5,0.261]
[1740040631617,4.909977,2733.6,2733.5,3.91931]
[1740040632073,4.909977,2733.6,2733.5,0.261]
[1740040632505,4.909977,2733.6,2733.5,3.91931]
[1740040632706,4.909977,2733.6,2733.5,0.261]
[1740040633519,4.909977,2733.6,2733.5,3.91931]
[1740040638034,4.909977,2733.6,2733.5,0.261]
[1740040640845,0.8177,2733.4,2733.1,3.65884]
[1740040641050,0.8177,2733.4,2733.2,0.261]
[1740040642110,0.8177,2733.4,2733.2,3.91969]
[1740040643451,0.8177,2733.4,2733.3,3.65858]
[1740040643651,0.55,2733.5,2733.3,3.65858]
[1740040644210,0.55,2733.5,2733.2,0.261]
[1740040644811,0.55,2733.5,2733.2,3.91969]
[1740040645317,5.732277,2733.6,2733.2,4.70813]
[1740040645517,5.732277,2733.6,2733.3,3.65849]
[1740040645756,4.909977,2733.5,2733.3,3.65849]
[1740040650054,4.909977,2733.5,2733.3,3.65851]
[1740040650268,4.909977,2733.5,2733.3,7.317]
[1740040650574,4.909977,2733.5,2733.4,3.65844]
[1740040650714,4.909977,2733.5,2733.4,5.8025206]
[1740040652744,4.909977,2733.5,2733.4,4.46474]
[1740040654559,4.909977,2733.5,2733.4,0.261]
[1740040654751,6.1710747,2733.5,2733.4,0.261]
[1740040655451,0.55,2733.4,2732.9,3.65902]
[1740040655659,4.909977,2733.3,2733.0,3.9199]
[1740040656059,4.909977,2733.3,2733.1,3.65882]
[1740040656228,4.909977,2733.3,2733.2,3.65871]
[1740040656654,4.909977,2733.3,2733.2,4.46501]
[1740040656853,4.909977,2733.3,2733.2,5.57942837]
[1740040657983,4.909977,2733.3,2733.2,3.65871]
[1740040660660,4.909977,2733.3,2733.1,3.65882]
[1740040660860,4.909977,2733.3,2733.2,0.261]
[1740040662186,4.909977,2733.3,2733.2,3.91971]
[1740040663282,4.909977,2733.3,2733.2,0.261]
[1740040665598,4.909977,2733.3,2733.2,3.91971]
[1740040669710,4.909977,2733.3,2733.2,0.261]
[1740040669902,5.664377,2733.3,2733.2,0.261]
[1740040672449,4.909977,2733.3,2733.2,0.261]
[1740040675821,5.8425967,2733.3,2733.2,0.261]
[1740040676020,4.909977,2733.3,2733.2,0.261]
[1740040681688,4.909977,2733.3,2733.2,6.06306426]
[1740040682557,4.909977,2733.3,2733.2,7.4842512]
[1740040684400,4.909977,2733.9,2733.8,3.65791]
[1740040689205,4.909977,2733.9,2733.8,4.470994]
[1740040691424,4.909977,2733.9,2733.8,3.65791]
[1740040691796,4.909977,2733.9,2733.8,3.91891]
[1740040700554,4.909977,2733.9,2733.8,0.261]
[1740040700744,5.726077,2733.9,2733.8,0.261]
[1740040702074,5.726077,2733.9,2733.4,8.221]
[1740040702075,4.909977,2733.9,2733.4,8.221]
[1740040702278,0.55,2733.5,2733.4,8.221]
[1740040702476,0.55,2733.5,2733.4,8.482]
[1740040703446,5.707777,2733.8,2733.6,3.65817]
[1740040703647,4.909977,2733.8,2733.7,4.99633165]
[1740040704745,4.909977,2733.8,2733.7,3.65804]
[1740040705281,4.909977,2733.8,2733.7,5.171761]
[1740040710726,4.909977,2733.8,2733.7,4.44014]
[1740040713570,4.909977,2733.8,2733.7,3.65804]
[1740040714677,4.909977,2733.8,2733.7,4.45574]
[1740040715162,4.909977,2733.8,2733.7,3.65804]
[1740040718078,4.909977,2733.8,2733.7,4.43804]
[1740040718261,4.909977,2733.8,2733.7,5.52359285]
[1740040719472,4.909977,2733.8,2733.7,8.52359285]
[1740040719674,0.598467,2734.6,2734.3,3.65715]
[1740040719856,0.598467,2734.6,2734.4,0.261]
[1740040720887,0.598467,2734.6,2734.4,3.9181]
[1740040725186,0.598467,2734.6,2734.4,7.57512]
[1740040725861,0.598467,2734.6,2734.4,3.91802]
[1740040728282,0.598467,2734.6,2734.4,7.57506]
[1740040731990,0.598467,2734.6,2734.4,7.57505]
[1740040732811,0.598467,2734.6,2734.4,3.91802]
[1740040736098,0.598467,2734.6,2734.4,3.65702]
[1740040736300,1.414467,2734.6,2734.5,0.261]
[1740040736606,1.93548865,2734.6,2734.5,0.261]
[1740040737017,0.55,2734.5,2734.1,3.6575]
[1740040737167,0.55,2734.3,2733.9,11.8767]
[1740040737363,0.7727,2734.2,2733.9,11.8767]
[1740040737602,0.7727,2734.2,2734.0,0.261]
[1740040738704,0.7727,2734.2,2734.1,0.261]
[1740040740819,1.371167,2734.2,2734.1,0.261]
[1740040741119,2.4790017,2734.2,2734.1,0.261]
[1740040742819,1.921167,2734.2,2734.1,0.261]
[1740040744620,1.371167,2734.2,2734.1,0.261]
[1740040744788,0.598467,2734.2,2734.1,0.261]
[1740040746288,0.598467,2734.2,2734.1,3.91851]
[1740040760939,0.598467,2734.2,2734.1,0.261]
[1740040761295,1.3456537,2734.2,2734.1,0.261]
[1740040763437,1.3456537,2734.2,2733.7,12.69389]
[1740040763608,0.7824,2734.1,2733.8,0.261]
[1740040763812,0.7824,2734.1,2733.9,0.261]
[1740040764026,0.7824,2734.1,2734.0,0.261]
[1740040767402,1.380867,2734.1,2734.0,0.261]
[1740040768557,0.8269,2733.9,2733.7,8.219]
[1740040768704,1.3769,2733.9,2733.8,0.261]
[1740040769203,5.03468,2733.9,2733.7,8.219]
[1740040770418,0.55,2733.8,2733.7,8.219]
[1740040771604,4.20791,2733.8,2733.7,8.219]
[1740040771945,4.2082,2733.6,2733.1,4.43537]
[1740040772151,0.598467,2733.5,2733.3,0.261]
[1740040772333,0.7919,2733.3,2732.9,4.43562]
[1740040772533,0.7919,2733.3,2733.0,3.91997]
[1740040775149,0.7919,2733.3,2733.0,3.91991]
[1740040775662,0.7919,2733.3,2733.0,7.57878]
[1740040775865,0.7919,2733.3,2733.0,3.91987]
[1740040776344,0.598467,2733.2,2733.1,3.65883]
[1740040776858,0.598467,2733.2,2733.1,3.91983]
[1740040783074,0.598467,2733.2,2733.1,4.72863]
[1740040790471,0.598467,2733.2,2733.1,3.91983]
[1740040790637,1.406567,2733.2,2733.1,3.91983]
[1740040791974,1.406567,2733.2,2733.1,0.261]
[1740040793275,1.406567,2733.2,2733.0,3.6589]
[1740040793476,1.406567,2733.2,2733.1,0.261]
[1740040793677,1.956567,2733.2,2733.1,0.261]
[1740040794343,1.956567,2733.2,2733.1,3.91984]
[1740040794545,1.406567,2733.2,2733.1,3.91984]
[1740040795077,0.598467,2733.2,2733.1,3.91984]
[1740040797578,0.598467,2733.2,2733.1,0.261]
[1740040797877,0.598467,2733.2,2733.1,3.91984]
[1740040799263,0.598467,2733.2,2733.1,4.759301]
[1740040802455,0.598467,2733.2,2733.1,6.89185587]
[1740040812035,0.598467,2733.7,2733.5,3.65829]
[1740040815037,0.598467,2733.7,2733.3,3.65852]
[1740040815236,0.598467,2733.7,2733.3,7.31702]
[1740040815444,0.598467,2733.7,2733.4,3.6584]
[1740040815943,0.598467,2733.7,2733.6,3.65817]
[1740040825232,0.598467,2733.7,2733.6,4.60531349]
[1740040825432,0.55,2734.2,2733.8,3.65791]
[1740040825433,0.598467,2733.9,2733.8,3.65791]
[1740040827173,1.3694,2734.2,2733.7,3.65803]
[1740040827360,1.3694,2734.2,2733.9,3.65777]
[1740040827562,1.3694,2734.2,2734.0,0.261]
[1740040833555,0.8194,2734.2,2734.0,0.261]
[1740040834095,0.8194,2734.2,2734.1,3.65751]
[1740040834312,0.8194,2734.2,2734.0,3.91863]
[1740040835752,0.8194,2734.2,2734.0,0.261]
[1740040838288,0.8194,2734.2,2734.1,3.65751]
[1740040838459,0.8194,2734.2,2734.0,3.91864]
[1740040839995,0.7687,2734.4,2734.0,3.91864]
[1740040840196,0.7687,2734.4,2734.1,3.6575]
[1740040840917,1.33855487,2734.3,2734.0,0.261]
[1740040841088,1.33855487,2734.3,2733.9,3.65772]
[1740040841089,2.12445487,2734.1,2732.5,3.86715]
[1740040841414,4.44383,2733.8,2733.3,3.6585]
[1740040842231,4.44383,2733.8,2733.3,7.317]
[1740040842436,4.44383,2733.8,2733.3,3.6585]
[1740040842793,4.44383,2733.8,2733.3,7.317]
[1740040842984,4.44383,2733.8,2733.3,3.6585]
[1740040843184,4.44383,2733.8,2733.3,7.317]
[1740040843416,4.44383,2733.8,2733.3,3.65849]
[1740040843614,0.7859,2733.8,2733.4,3.65843]
[1740040843816,0.7859,2733.8,2733.4,4.416222]
[1740040844515,4.44391,2733.8,2733.3,3.65849]
[1740040845230,0.7786,2733.7,2733.2,0.261]
[1740040845530,0.55,2733.6,2733.2,3.65858]
[1740040845734,0.55,2733.6,2733.3,0.261]
[1740040846332,0.55,2733.6,2733.1,8.22]
[1740040846519,0.55,2733.6,2733.2,0.261]
[1740040847036,4.2082,2733.6,2733.2,0.261]
[1740040848357,4.2082,2733.6,2733.1,11.87883]
[1740040848358,3.65852,2733.4,2733.1,8.22]
[1740040848567,4.20878,2733.2,2733.1,0.261]
[1740040849370,0.55,2733.2,2733.1,0.261]
[1740040849703,0.55,2733.2,2732.7,3.65933]
[1740040849928,0.8034,2733.0,2732.8,0.261]
[1740040850969,0.8034,2733.0,2732.8,3.92023]
[1740040852421,1.3302,2733.3,2732.8,4.678135]
[1740040852605,1.3302,2733.3,2732.9,3.65903]
[1740040854237,4.98878,2733.3,2732.8,3.92017]
[1740040854811,4.98878,2733.3,2732.8,7.57935]
[1740040855011,4.98878,2733.3,2732.8,3.92017]
[1740040855239,1.3302,2733.3,2732.9,3.65902]
[1740040863020,1.33855487,2733.1,2732.5,3.65957]
[1740040863228,4.99767487,2732.9,2732.4,10.02044598]
[1740040863433,4.99767487,2732.9,2732.5,3.92064]
[1740040864039,0.7516,2732.8,2732.6,0.261]
[1740040864241,4.23418749,2732.8,2732.6,0.261]
[1740040864447,0.7516,2732.7,2732.6,0.261]
[1740040864933,2.09015487,2732.7,2732.6,0.261]
[1740040865134,2.64015487,2732.7,2732.6,0.261]
[1740040865390,3.65952,2732.6,2732.5,0.261]
[1740040865680,0.7516,2732.5,2732.4,9.24614598]
[1740040865838,2.09015487,2732.5,2732.4,9.24614598]
[1740040866772,0.7516,2732.5,2732.4,9.24614598]
[1740040866936,0.7516,2732.5,2732.4,8.221]
[1740040867673,0.7516,2732.5,2732.3,3.6599]
[1740040868033,0.7516,2732.5,2732.2,3.92105]
[1740040868234,0.7516,2732.5,2732.2,7.58103]
[1740040868664,0.7516,2732.5,2732.3,3.65991]
[1740040870047,0.7516,2732.5,2732.3,3.65984]
[1740040870973,0.7516,2732.5,2732.2,0.261]
[1740040871138,0.55,2732.4,2731.9,4.44149]
[1740040871341,1.3449,2732.2,2731.7,4.46463]
[1740040871581,1.3449,2732.2,2731.3,8.223]
[1740040871582,0.8286,2731.9,2731.6,0.261]
[1740040872252,0.8286,2731.9,2731.6,3.92185]
[1740040873184,0.8286,2731.9,2731.6,0.261]
[1740040873746,0.8286,2731.9,2731.6,3.92177]
[1740040874293,1.3786,2731.9,2731.8,3.66059]
[1740040874516,0.7695,2732.2,2731.6,0.261]
[1740040874719,0.55,2732.1,2731.7,0.7878]
[1740040875017,0.55,2731.9,2731.6,3.92176]
[1740040876484,0.55,2731.9,2731.7,3.66059]
[1740040876785,0.55,2731.9,2731.6,3.92176]
[1740040876786,0.55,2731.9,2731.6,7.58252]
[1740040877330,0.55,2731.9,2731.7,3.66062]
[1740040878430,0.55,2731.9,2731.6,3.92176]
[1740040878617,0.55,2731.9,2731.6,7.5825]
[1740040878921,0.7794,2732.0,2731.8,3.6605]
[1740040879099,0.7794,2732.0,2731.7,3.66069]
[1740040879290,0.55,2731.9,2731.6,0.261]
[1740040879688,0.55,2731.9,2731.7,0.261]
[1740040879915,1.048963,2731.9,2731.7,0.261]
[1740040880507,0.55,2731.9,2731.7,0.261]
[1740040884340,0.55,2731.7,2731.3,8.223]
[1740040884514,0.55,2731.7,2731.5,0.261]
[1740040884933,0.55,2731.5,2731.3,8.484]
[1740040886049,0.55,2731.5,2731.3,8.223]
[1740040886354,0.55,2731.5,2731.3,11.88418]
[1740040886645,0.55,2731.5,2731.3,8.223]
[1740040886842,0.55,2731.5,2731.4,3.66112]
[1740040889626,3.0,2732.1,2731.5,3.66094]
[1740040889627,0.7509,2731.8,2731.5,3.66094]
[1740040890029,0.55,2731.7,2731.2,3.92227]
[1740040891142,0.55,2731.7,2731.2,7.58358]
[1740040891320,0.55,2731.7,2731.2,3.92227]
[1740040891962,1.04615,2731.7,2731.2,3.92227]
[1740040892429,1.04615,2731.7,2731.2,7.58359]
[1740040892625,0.7509,2731.8,2731.2,0.261]
[1740040892837,0.7537,2732.0,2731.3,4.47425]
[1740040893029,4.21047,2731.9,2731.3,3.66119]
[1740040893229,0.55,2731.7,2731.3,3.66119]
[1740040893656,0.55,2731.7,2731.4,3.66104]
[1740040893820,0.7537,2731.8,2731.5,3.66098]
[1740040894619,0.7537,2731.8,2731.5,7.32188]
[1740040894818,0.7537,2731.8,2731.5,3.66089]
[1740040895863,0.7537,2731.8,2731.6,3.66085]
[1740040896528,0.7537,2731.8,2731.4,3.66109]
[1740040896734,0.7537,2731.8,2731.5,3.66098]
[1740040896936,0.7537,2731.8,2731.6,3.66081]
[1740040897157,0.55,2732.0,2731.6,3.66075]
[1740040898386,0.55,2731.8,2731.4,3.66105]
[1740040898803,0.55,2731.8,2731.6,3.66083]
[1740040901394,0.55,2731.8,2731.7,3.66072]
[1740040901751,0.7757,2732.1,2731.7,3.66072]
[1740040902204,0.55,2732.0,2731.7,3.66072]
[1740040902567,0.55,2732.0,2731.7,3.66065]
[1740040903401,0.55,2732.0,2731.3,0.8018]
[1740040903569,0.55,2732.0,2731.8,3.66052]
[1740040903894,0.8322,2732.3,2731.9,3.66044]
[1740040904100,0.8322,2732.3,2732.0,0.261]
[1740040904397,0.8322,2732.5,2732.0,0.261]
[1740040904640,0.55,2732.4,2732.1,3.66014]
[1740040904955,0.55,2732.4,2732.1,3.6601]
[1740040906780,0.55,2732.4,2732.2,3.65998]
[1740040906986,0.55,2732.4,2732.1,3.6601]
[1740040907478,0.55,2732.4,2732.0,0.261]
[1740040907479,4.20987,2732.4,2732.0,0.261]
[1740040907680,1.3673,2732.2,2732.0,0.261]
[1740040907877,5.02736,2732.2,2732.0,0.261]
[1740040908082,1.3673,2732.2,2732.0,0.261]
[1740040910701,0.55,2732.0,2731.5,3.66089]
[1740040910902,0.55,2731.8,2731.3,3.66121]
[1740040911075,0.801,2731.7,2731.6,0.261]
[1740040911414,1.351,2731.7,2731.6,0.261]
[1740040915944,0.786,2732.1,2731.6,3.92178]
[1740040916152,0.55,2732.0,2731.6,0.261]
[1740040916439,0.55,2731.8,2731.6,0.261]
[1740040917130,4.21066,2731.8,2731.6,0.261]
[1740040917338,0.55,2731.8,2731.6,0.261]
[1740040919124,4.2107,2731.8,2731.6,0.261]
[1740040919310,5.075375,2731.8,2731.6,0.261]
[1740040919509,0.55,2731.7,2731.1,4.43521052]
[1740040919733,0.8304,2731.6,2731.2,0.261]
[1740040920437,0.8304,2731.6,2731.2,3.92232]
[1740040921055,0.8304,2731.6,2731.2,3.92231]
[1740040921903,0.8304,2731.6,2731.2,0.261]
[1740040922100,0.55,2731.7,2731.4,3.66105]
[1740040922818,0.55,2731.7,2731.4,7.32209]
[1740040923019,0.55,2731.7,2731.4,3.66104]
[1740040924117,0.55,2731.7,2731.2,3.92232]
[1740040924433,0.55,2731.7,2731.2,7.58364]
[1740040924653,0.55,2731.7,2731.2,3.92232]
[1740040924849,0.55,2731.7,2731.2,0.261]
[1740040925036,0.55,2731.7,2731.3,3.66113]
[1740040925638,0.55,2731.7,2731.3,7.32232]
[1740040926472,0.8044,2731.8,2731.3,4.49684105]
[1740040926612,0.8044,2731.8,2731.4,3.66112]
[1740040926954,0.8044,2731.8,2731.5,3.66085]
[1740040927125,3.7898,2732.1,2731.6,3.66082]
[1740040927447,0.7898,2732.1,2731.9,3.66038]
[1740040927662,0.8207,2732.3,2731.9,3.66038]
[1740040928011,0.8207,2732.3,2732.0,0.261]
[1740040928738,0.8207,2732.6,2732.0,0.261]
[1740040928943,0.8207,2732.6,2732.1,3.66015]
[1740040929145,4.48025,2732.6,2732.1,3.66015]
[1740040929342,0.8207,2732.6,2732.1,3.66015]
[1740040929645,0.55,2732.5,2732.0,0.261]
[1740040930009,0.8207,2732.9,2732.7,3.65931]
[1740040930210,0.8207,2732.9,2732.5,3.65957]
[1740040931650,0.55,2732.8,2732.6,3.65951]
[1740040931851,0.55,2732.8,2732.5,3.65957]
[1740040937373,0.55,2732.8,2732.6,3.65943]
[1740040938252,0.7623,2733.4,2732.6,1.5627]
[1740040938495,4.4208,2733.4,2732.9,3.65909]
[1740040938698,0.55,2733.3,2732.9,3.92009]
[1740040939770,0.55,2733.3,2732.9,0.261]
[1740040940261,0.55,2733.3,2732.9,3.92009]
[1740040942290,0.55,2733.3,2733.0,3.65897]
[1740040942675,0.55,2733.3,2733.0,0.7875]
[1740040943496,0.55,2733.3,2732.9,3.92003]
[1740040943664,0.55,2733.3,2733.0,3.65892]
[1740040945100,0.55,2733.3,2732.9,3.92003]
[1740040945279,0.55,2733.3,2733.1,3.65884]
[1740040945588,0.8109,2733.6,2733.2,3.65871]
[1740040946144,0.55,2733.5,2733.2,3.65871]
[1740040946764,0.55,2733.5,2733.2,3.65865]
[1740040946958,0.8109,2733.6,2733.3,3.65851]
[1740040947176,0.7998,2733.8,2733.3,3.65851]
[1740040947774,0.1563,2734.0,2733.4,3.65836]
[1740040947775,0.5575,2733.9,2733.4,3.65836]
[1740040947979,0.5575,2733.9,2733.3,3.65852]
[1740040948182,0.5575,2733.9,2733.4,0.4107555]
[1740040948770,0.55,2733.9,2733.5,3.65823]
[1740040948972,0.55,2733.9,2733.5,4.42313]
[1740040952412,0.55,2733.9,2733.6,3.65808]
[1740040952560,0.1488,2734.0,2733.9,3.65777]
[1740040953211,0.6988,2734.0,2733.9,3.65777]
[1740040953357,0.1488,2734.0,2733.9,4.415437]
[1740040953562,0.1488,2734.0,2733.9,5.218637]
[1740040956161,0.1488,2734.0,2733.9,8.218637]
[1740040968818,3.65565,2735.5,2735.0,3.6562]
[1740040968994,0.8089,2735.4,2735.1,0.261]
[1740040973186,4.46467,2735.4,2735.1,0.261]
[1740040973686,0.8089,2735.4,2735.1,0.261]
[1740040975988,4.46474,2735.4,2735.1,0.261]
[1740040980028,0.8089,2735.4,2735.1,0.261]
[1740040981832,4.46473,2735.4,2735.1,0.261]
[1740040982025,5.331773,2735.4,2735.1,0.261]
[1740040982200,1.675943,2735.4,2735.1,0.261]
[1740040982711,5.331733,2735.4,2735.1,0.261]
[1740040984526,1.675943,2735.4,2735.1,0.261]
[1740040985330,0.8089,2735.4,2735.1,0.261]
[1740040985531,0.7675,2735.6,2735.2,3.65595]
[1740040985743,4.42154,2735.8,2735.3,3.6559]
[1740040985945,4.42154,2735.8,2735.1,4.74065]
[1740040985946,0.55,2735.7,2735.2,3.65595]
[1740040986411,0.55,2735.7,2735.3,3.65589]
[1740040987343,4.2054,2735.7,2735.1,4.74066]
[1740040988242,4.2054,2735.7,2735.2,3.65596]
[1740040989310,0.55,2735.7,2735.3,3.65586]
[1740040989506,0.7662,2735.8,2735.5,3.65561]
[1740040989713,0.1,2736.9,2735.5,3.65561]
[1740040989714,0.797,2736.3,2735.8,3.65516]
[1740040989917,0.797,2736.3,2735.9,0.26]
[1740040991828,4.4516,2736.3,2735.9,0.26]
[1740040992925,8.10626,2736.3,2735.9,0.26]
[1740040993176,4.4516,2736.3,2735.9,0.26]
[1740040994176,3.6547,2736.2,2735.9,0.26]
[1740040994469,0.797,2736.3,2735.9,0.26]
[1740040994812,0.797,2736.3,2735.9,1.065]
[1740040995074,4.45164,2736.3,2735.9,1.065]
[1740040995628,3.65479,2736.2,2735.9,1.065]
[1740040996673,4.45159,2736.3,2735.9,1.065]
[1740040996974,0.797,2736.3,2735.9,1.065]
[1740040997177,3.65444,2736.4,2735.9,1.537019]
[1740040997871,0.55,2736.3,2735.9,1.537019]
[1740040998373,0.55,2736.4,2735.9,4.72006]
[1740040998785,0.7588,2736.5,2735.9,4.72006]
[1740040999079,0.7588,2736.5,2736.1,3.65473]
[1740040999283,4.42421,2736.7,2736.2,3.65469]
[1740040999644,4.42421,2736.7,2736.1,0.8014]
[1740040999885,3.65425,2736.6,2736.1,0.8014]
[1740041000381,3.65424,2736.6,2736.1,0.8014]
[1740041000881,0.7701,2736.7,2736.1,0.8014]
[1740041001051,3.65438,2736.5,2736.1,0.8014]
[1740041002300,3.65438,2736.5,2736.1,0.471626]
[1740041002479,3.65466,2736.3,2735.6,6.65543]
[1740041002779,3.65466,2736.3,2736.2,0.26]
[1740041004174,3.65466,2736.3,2735.7,0.7996]
[1740041004378,3.65479,2736.2,2735.8,0.26]
[1740041005249,3.65479,2736.2,2735.8,1.097043]
[1740041007087,3.65485,2736.1,2735.8,1.097043]
[1740041007295,4.41427,2736.0,2735.5,3.7767]
[1740041007471,3.65512,2735.9,2735.5,3.7767]
[1740041007685,0.7593,2736.0,2735.6,0.26]
[1740041008547,4.41434,2736.0,2735.5,3.7767]
[1740041008752,0.7593,2736.0,2735.7,0.26]
[1740041009095,0.7593,2736.0,2735.5,7.43226]
[1740041009096,5.9993,2736.0,2735.5,0.7767]
[1740041009249,4.20523,2735.9,2735.8,0.26]
[1740041011795,4.98063,2735.9,2735.8,0.26]
[1740041013885,10.22063,2735.9,2735.8,0.26]
[1740041014982,0.55,2735.5,2735.2,8.216]
[1740041015232,8.89585,2735.4,2735.3,0.26]
[1740041016486,5.24,2735.4,2735.3,1.0562]
[1740041018424,5.24,2735.4,2735.3,4.7121]
[1740041018627,5.24,2735.4,2735.3,6.370505]
[1740041019947,5.24,2735.9,2735.5,3.65554]
[1740041020096,5.24,2735.9,2735.6,4.44953]
[1740041020297,5.24,2735.9,2735.6,0.7941]
[1740041021013,5.24,2735.9,2735.6,4.44953]
[1740041021212,5.24,2735.9,2735.7,0.444953]
[1740041034292,8.89517,2735.9,2735.6,0.7941]
[1740041036015,5.3392,2735.9,2735.6,0.7941]
[1740041036934,4.42002,2735.8,2735.3,7.45611]
[1740041037088,8.07535,2735.8,2735.4,0.26]
[1740041037505,3.65544,2735.7,2735.5,0.26]
[1740041037702,8.89544,2735.7,2735.5,0.26]
[1740041038228,5.24,2735.7,2735.5,0.26]
[1740041039493,5.24,2735.7,2735.5,5.052758]
[1740041040434,5.24,2735.7,2735.6,0.8018]
[1740041040822,5.24,2735.7,2735.5,1.397188]
[1740041041799,5.24,2735.7,2735.5,5.052818]
[1740041042138,5.24,2735.7,2735.5,5.052758]
[1740041042341,5.24,2735.7,2735.6,4.2409558]
[1740041043631,5.3392,2735.9,2735.6,4.2409558]
[1740041044397,5.3392,2735.9,2735.6,0.5854558]
[1740041044599,5.3392,2735.9,2735.7,3.65536]
[1740041044795,5.3392,2735.9,2735.7,4.40716]
[1740041045025,5.3392,2735.9,2735.8,0.49926158]
[1740041046340,5.3392,2735.9,2735.8,4.15449158]
[1740041046836,5.3392,2735.9,2735.8,0.49926158]
[1740041047341,5.3392,2735.9,2735.8,4.15449158]
[1740041048237,5.3392,2735.9,2735.8,0.49926158]
[1740041048541,5.3392,2735.9,2735.6,3.65548]
[1740041049040,5.3392,2735.9,2735.5,4.74043]
[1740041049198,6.6754641,2735.9,2735.5,1.0848]
[1740041049597,10.3306141,2735.9,2735.5,0.26]
[1740041051025,0.7553,2735.8,2735.5,0.26]
[1740041053037,4.41056,2735.8,2735.5,0.26]
[1740041053240,1.3362641,2735.7,2735.5,0.26]
[1740041053612,0.7553,2735.8,2735.5,0.26]
[1740041054037,0.7553,2735.8,2735.6,0.26]
[1740041054976,4.41054,2735.8,2735.6,0.26]
[1740041055641,9.65054,2735.8,2735.6,0.26]
[1740041056843,5.9953,2735.8,2735.6,0.26]
[1740041057739,5.24,2735.8,2735.6,0.26]
[1740041058319,5.24,2735.8,2735.6,3.91539]
[1740041058544,5.24,2735.8,2735.7,0.834706]
[1740041059051,5.24,2735.8,2735.7,4.490076]
[1740041060524,5.24,2735.8,2735.7,0.834706]
[1740041061675,3.65523,2735.8,2735.6,0.26]
[1740041061827,1.3362641,2735.7,2735.6,0.26]
[1740041063057,10.3306641,2735.9,2735.6,0.26]
[1740041065962,6.6754641,2735.9,2735.6,0.26]
[1740041070291,10.3305641,2735.9,2735.6,0.26]
[1740041070884,6.6754641,2735.9,2735.6,0.26]
[1740041077905,6.6754641,2735.9,2735.6,3.91548]
[1740041078115,6.6754641,2735.9,2735.6,0.26]
[1740041079576,5.3392,2735.9,2735.6,3.91544]
[1740041079864,5.3392,2735.9,2735.6,4.29998442]
[1740041080220,5.3392,2735.9,2735.8,3.65523]
[1740041080651,5.3392,2735.9,2735.8,4.42913]
[1740041080850,5.3392,2735.9,2735.8,0.7739]
[1740041081100,5.3392,2735.9,2735.8,4.42913]
[1740041081459,5.3392,2735.9,2735.8,5.30203044]
[1740041093429,0.0992,2735.9,2735.8,5.30203044]
[1740041102742,0.0992,2735.9,2735.6,0.38454442]
[1740041102743,1.4354641,2735.9,2735.6,0.38454442]
[1740041102898,1.4354641,2735.9,2735.5,4.43174]
[1740041102899,1.4354641,2735.9,2735.8,0.26]
[1740041103097,6.6754641,2735.9,2735.8,0.26]
[1740041105597,10.3305641,2735.9,2735.8,0.26]
[1740041105798,10.3305641,2735.9,2735.3,12.64604]
[1740041105799,0.7642,2735.8,2735.3,12.64604]
[1740041106009,0.7642,2735.8,2735.4,0.26]
[1740041106246,1.3362641,2735.7,2735.4,0.26]
[1740041106541,0.7642,2735.8,2735.4,3.91568]
[1740041108244,0.7642,2735.8,2735.5,3.65561]
[1740041108740,0.7642,2735.8,2735.4,3.91569]
[1740041108944,6.0042,2735.8,2735.5,3.65562]
[1740041110798,6.0042,2735.8,2735.4,1.916173]
[1740041110799,6.0042,2735.8,2735.4,0.26]
[1740041110999,6.0042,2735.8,2735.4,3.91573]
[1740041111225,1.3362641,2735.7,2735.4,0.26]